[Event "*** Titled Tuesday Blitz"]
[Site "Chess.com"]
[Date "2020.04.14"]
[Round "5"]
[White "trickytock"]
[Black "AyMitecK"]
[Result "1-0"]
[WhiteElo "2517"]
[BlackElo "2317"]
[TimeControl "180+1"]
[EndTime "10:48:55 PDT"]
[Termination "trickytock won by checkmate"]

1. d4 {[%clk 0:03:00.9]} 1... Nf6 {[%clk 0:02:59.8]} 2. c4 {[%clk 0:03:00.2]}
2... e6 {[%clk 0:03:00]} 3. Nf3 {[%clk 0:03:00]} 3... c5 {[%clk 0:03:00.3]} 4.
d5 {[%clk 0:02:59.7]} 4... exd5 {[%clk 0:03:01.2]} 5. cxd5 {[%clk 0:03:00.2]}
5... d6 {[%clk 0:03:02.1]} 6. e4 {[%clk 0:03:00.3]} 6... g6 {[%clk 0:03:02.5]}
7. Bd3 {[%clk 0:03:00.4]} 7... Bg7 {[%clk 0:03:02.6]} 8. h3 {[%clk 0:03:01]}
8... O-O {[%clk 0:03:02.7]} 9. O-O {[%clk 0:03:01.4]} 9... b5 {[%clk 0:03:01.3]}
10. Bxb5 {[%clk 0:03:00.6]} 10... Nxe4 {[%clk 0:03:01.2]} 11. Re1 {[%clk
0:03:01.1]} 11... a6 {[%clk 0:02:55.4]} 12. Bf1 {[%clk 0:02:49.8]} 12... Re8
{[%clk 0:02:51.8]} 13. Na3 {[%clk 0:02:45]} 13... Nd7 {[%clk 0:02:19.5]} 14. Bd3
{[%clk 0:02:12.8]} 14... Nef6 {[%clk 0:02:08.2]} 15. Rxe8+ {[%clk 0:02:11.8]}
15... Nxe8 {[%clk 0:02:09.1]} 16. Bg5 {[%clk 0:02:05.3]} 16... Qc7 {[%clk
0:01:53.4]} 17. Nc4 {[%clk 0:02:03.4]} 17... Nb6 {[%clk 0:01:47.6]} 18. Qd2
{[%clk 0:01:50.9]} 18... Nxc4 {[%clk 0:01:15]} 19. Bxc4 {[%clk 0:01:50.1]} 19...
Rb8 {[%clk 0:01:15]} 20. Re1 {[%clk 0:01:48.7]} 20... Nf6 {[%clk 0:00:48.8]} 21.
Qf4 {[%clk 0:01:38.1]} 21... Nh5 {[%clk 0:00:48.4]} 22. Re8+ {[%clk 0:01:36.9]}
22... Bf8 {[%clk 0:00:48.9]} 23. Bh6 {[%clk 0:01:35.8]} 23... Ng7 {[%clk
0:00:49.3]} 24. Qf6 {[%clk 0:01:28]} 24... Bxh3 {[%clk 0:00:26.3]} 25. Qxg7#
{[%clk 0:01:27.2]} 1-0

[Event "*** Titled Tuesday Blitz"]
[Site "Chess.com"]
[Date "2020.04.14"]
[Round "5"]
[White "TregubovP"]
[Black "Shivagami"]
[Result "1-0"]
[WhiteElo "2499"]
[BlackElo "2146"]
[TimeControl "180+1"]
[EndTime "10:48:56 PDT"]
[Termination "TregubovP won by resignation"]

1. e4 {[%clk 0:03:00.9]} 1... e5 {[%clk 0:02:58.5]} 2. Nf3 {[%clk 0:02:58.4]}
2... Nc6 {[%clk 0:02:58.7]} 3. Bc4 {[%clk 0:02:55.5]} 3... Nf6 {[%clk
0:02:58.2]} 4. d4 {[%clk 0:02:55]} 4... exd4 {[%clk 0:02:54]} 5. e5 {[%clk
0:02:53.3]} 5... d5 {[%clk 0:02:54.2]} 6. Bb5 {[%clk 0:02:53.3]} 6... Ne4 {[%clk
0:02:52.8]} 7. Nxd4 {[%clk 0:02:45.1]} 7... Bc5 {[%clk 0:02:47.4]} 8. O-O {[%clk
0:02:42.6]} 8... O-O {[%clk 0:02:28.4]} 9. Nxc6 {[%clk 0:02:27.6]} 9... bxc6
{[%clk 0:02:26.6]} 10. Bxc6 {[%clk 0:02:27.7]} 10... Ba6 {[%clk 0:02:26.8]} 11.
Qxd5 {[%clk 0:02:15.6]} 11... Bxf1 {[%clk 0:02:18.7]} 12. Bxa8 {[%clk
0:02:09.2]} 12... Qh4 {[%clk 0:01:44.5]} 13. g3 {[%clk 0:01:55.2]} 13... Bxf2+
{[%clk 0:01:35.4]} 14. Kxf1 {[%clk 0:01:54.9]} 14... Qh3+ {[%clk 0:01:34.9]} 15.
Ke2 {[%clk 0:01:53.7]} 15... Qg4+ {[%clk 0:01:33]} 16. Kd3 {[%clk 0:01:39.5]}
16... Qf3+ {[%clk 0:00:55.8]} 17. Kc4 {[%clk 0:01:39.5]} 17... Qe2+ {[%clk
0:00:25.5]} 18. Qd3 {[%clk 0:01:38.6]} 18... Nd6+ {[%clk 0:00:17.8]} 19. exd6
{[%clk 0:01:37.5]} 19... Qe6+ {[%clk 0:00:17.4]} 20. Bd5 {[%clk 0:01:34.7]}
20... Qxd6 {[%clk 0:00:17.8]} 21. Bxf7+ {[%clk 0:01:31.4]} 1-0

[Event "*** Titled Tuesday Blitz"]
[Site "Chess.com"]
[Date "2020.04.14"]
[Round "5"]
[White "ARMQUEEN"]
[Black "DrBergerBerger"]
[Result "0-1"]
[WhiteElo "2248"]
[BlackElo "2505"]
[TimeControl "180+1"]
[EndTime "10:48:57 PDT"]
[Termination "DrBergerBerger won by resignation"]

1. e4 {[%clk 0:02:44]} 1... e6 {[%clk 0:02:59.5]} 2. d4 {[%clk 0:02:42.7]} 2...
d5 {[%clk 0:02:59.5]} 3. Bd3 {[%clk 0:02:43.4]} 3... c5 {[%clk 0:02:53.6]} 4.
exd5 {[%clk 0:02:42.5]} 4... exd5 {[%clk 0:02:54.3]} 5. c3 {[%clk 0:02:41.1]}
5... Nf6 {[%clk 0:02:52.8]} 6. Nf3 {[%clk 0:02:41.3]} 6... c4 {[%clk 0:02:51]}
7. Bc2 {[%clk 0:02:40]} 7... Bg4 {[%clk 0:02:47.3]} 8. O-O {[%clk 0:02:39.5]}
8... Be7 {[%clk 0:02:46.9]} 9. Bf4 {[%clk 0:02:34.3]} 9... O-O {[%clk
0:02:45.8]} 10. Nbd2 {[%clk 0:02:34.3]} 10... Nc6 {[%clk 0:02:44.3]} 11. h3
{[%clk 0:02:34.5]} 11... Bh5 {[%clk 0:02:43.8]} 12. b3 {[%clk 0:02:22.4]} 12...
b5 {[%clk 0:02:35.6]} 13. Qb1 {[%clk 0:02:14.2]} 13... Bd6 {[%clk 0:02:24.9]}
14. Bg5 {[%clk 0:02:11]} 14... Re8 {[%clk 0:02:14.2]} 15. a4 {[%clk 0:02:03.9]}
15... Rb8 {[%clk 0:01:33.6]} 16. Bxh7+ {[%clk 0:02:02.1]} 16... Kf8 {[%clk
0:01:20.6]} 17. Bc2 {[%clk 0:01:59.5]} 17... b4 {[%clk 0:01:07]} 18. Re1 {[%clk
0:01:38.5]} 18... bxc3 {[%clk 0:01:02.4]} 19. Nf1 {[%clk 0:01:38.1]} 19... Bxf3
{[%clk 0:00:58.9]} 20. Rxe8+ {[%clk 0:01:36.1]} 20... Qxe8 {[%clk 0:00:58.6]}
21. Bxf6 {[%clk 0:01:36.2]} 21... gxf6 {[%clk 0:00:30]} 22. gxf3 {[%clk
0:01:31]} 22... Nxd4 {[%clk 0:00:27.8]} 23. Qc1 {[%clk 0:01:26.1]} 23... Ne2+
{[%clk 0:00:27]} 0-1

[Event "*** Titled Tuesday Blitz"]
[Site "Chess.com"]
[Date "2020.04.14"]
[Round "5"]
[White "GMAkobianSTL"]
[Black "stoleriu"]
[Result "1-0"]
[WhiteElo "2763"]
[BlackElo "2471"]
[TimeControl "180+1"]
[EndTime "10:49:02 PDT"]
[Termination "GMAkobianSTL won by resignation"]

1. d4 {[%clk 0:03:00.9]} 1... e6 {[%clk 0:03:00]} 2. c4 {[%clk 0:03:00.3]} 2...
Nf6 {[%clk 0:02:58.3]} 3. Nc3 {[%clk 0:02:59]} 3... Bb4 {[%clk 0:02:57.7]} 4.
Qc2 {[%clk 0:02:58.7]} 4... O-O {[%clk 0:02:54.9]} 5. Nf3 {[%clk 0:02:55.7]}
5... b6 {[%clk 0:02:42.1]} 6. Bg5 {[%clk 0:02:54.4]} 6... h6 {[%clk 0:02:39.4]}
7. Bh4 {[%clk 0:02:53.6]} 7... Bb7 {[%clk 0:02:39.5]} 8. e3 {[%clk 0:02:52.9]}
8... d6 {[%clk 0:02:31.7]} 9. Bd3 {[%clk 0:02:52.1]} 9... Nbd7 {[%clk
0:02:31.6]} 10. O-O {[%clk 0:02:51.4]} 10... Bxc3 {[%clk 0:02:31.1]} 11. bxc3
{[%clk 0:02:50.1]} 11... e5 {[%clk 0:02:24.4]} 12. Nd2 {[%clk 0:02:48.9]} 12...
Qe8 {[%clk 0:02:22.4]} 13. f3 {[%clk 0:02:45.2]} 13... Qe6 {[%clk 0:01:23.6]}
14. Rae1 {[%clk 0:02:39.6]} 14... g6 {[%clk 0:01:12.6]} 15. f4 {[%clk
0:02:23.5]} 15... e4 {[%clk 0:01:08.2]} 16. Be2 {[%clk 0:02:22.7]} 16... Nh7
{[%clk 0:01:07.6]} 17. f5 {[%clk 0:02:21.4]} 17... gxf5 {[%clk 0:01:08.5]} 18.
Rf4 {[%clk 0:02:15.7]} 18... Kh8 {[%clk 0:01:01.3]} 19. Ref1 {[%clk 0:02:15.1]}
19... Rg8 {[%clk 0:01:01.8]} 20. Rxf5 {[%clk 0:02:13.9]} 20... Raf8 {[%clk
0:01:00.6]} 21. g3 {[%clk 0:02:10]} 21... Ng5 {[%clk 0:00:38.3]} 22. d5 {[%clk
0:01:53.4]} 22... Qg6 {[%clk 0:00:32.6]} 23. Bxg5 {[%clk 0:01:52.7]} 23... hxg5
{[%clk 0:00:31.1]} 24. Nxe4 {[%clk 0:01:51.1]} 24... Rg7 {[%clk 0:00:22.3]} 25.
Rxg5 {[%clk 0:01:48.2]} 25... Qxg5 {[%clk 0:00:23.2]} 26. Nxg5 {[%clk
0:01:47.7]} 26... Rxg5 {[%clk 0:00:24.1]} 27. Rf5 {[%clk 0:01:46.6]} 27... Rxf5
{[%clk 0:00:21]} 28. Qxf5 {[%clk 0:01:46]} 28... Ne5 {[%clk 0:00:21.9]} 29. Bd3
{[%clk 0:01:44.5]} 29... Ng6 {[%clk 0:00:20.8]} 30. Qf6+ {[%clk 0:01:43.9]}
30... Kh7 {[%clk 0:00:20.3]} 31. Bxg6+ {[%clk 0:01:43]} 1-0

[Event "*** Titled Tuesday Blitz"]
[Site "Chess.com"]
[Date "2020.04.14"]
[Round "5"]
[White "ClassyEl"]
[Black "claudyna16"]
[Result "1-0"]
[WhiteElo "2714"]
[BlackElo "2534"]
[TimeControl "180+1"]
[EndTime "10:49:03 PDT"]
[Termination "ClassyEl won by resignation"]

1. d4 {[%clk 0:03:00.9]} 1... Nf6 {[%clk 0:02:59.4]} 2. Bg5 {[%clk 0:02:59.6]}
2... d5 {[%clk 0:02:56.6]} 3. Bxf6 {[%clk 0:02:59.4]} 3... exf6 {[%clk 0:02:56]}
4. e3 {[%clk 0:02:59.8]} 4... Bd6 {[%clk 0:02:40.8]} 5. c4 {[%clk 0:02:58.8]}
5... c6 {[%clk 0:02:40.4]} 6. cxd5 {[%clk 0:02:58.4]} 6... cxd5 {[%clk
0:02:40.4]} 7. Nc3 {[%clk 0:02:58.7]} 7... Be6 {[%clk 0:02:35.4]} 8. g3 {[%clk
0:02:58.5]} 8... Nc6 {[%clk 0:02:32.8]} 9. Bg2 {[%clk 0:02:58.8]} 9... Bb4
{[%clk 0:02:33.2]} 10. Ne2 {[%clk 0:02:58.7]} 10... O-O {[%clk 0:02:32.5]} 11.
O-O {[%clk 0:02:58.9]} 11... Ne7 {[%clk 0:02:29.9]} 12. Qb3 {[%clk 0:02:57.6]}
12... Bxc3 {[%clk 0:02:27.6]} 13. Nxc3 {[%clk 0:02:57.7]} 13... b6 {[%clk
0:02:28]} 14. Rfc1 {[%clk 0:02:53.1]} 14... Qd7 {[%clk 0:02:27.5]} 15. Qb5
{[%clk 0:02:23.7]} 15... Qd6 {[%clk 0:02:21.8]} 16. Qa6 {[%clk 0:02:18.4]} 16...
Qd7 {[%clk 0:02:05.1]} 17. a3 {[%clk 0:02:12.5]} 17... Rfc8 {[%clk 0:02:04.1]}
18. Nb5 {[%clk 0:02:08.4]} 18... Nc6 {[%clk 0:02:04]} 19. Rc3 {[%clk 0:01:50.1]}
19... Na5 {[%clk 0:01:44]} 20. Rac1 {[%clk 0:01:43]} 20... Rc4 {[%clk 0:01:29]}
21. Rxc4 {[%clk 0:01:39.2]} 21... dxc4 {[%clk 0:01:14.5]} 22. Bxa8 {[%clk
0:01:36]} 22... Nb3 {[%clk 0:01:15]} 23. Re1 {[%clk 0:01:14.5]} 23... h5 {[%clk
0:01:13.5]} 24. h4 {[%clk 0:01:13.6]} 24... Bg4 {[%clk 0:01:09.9]} 25. Nc3
{[%clk 0:01:08.5]} 25... Nd2 {[%clk 0:01:09.5]} 26. Qb7 {[%clk 0:01:06.9]} 26...
Qf5 {[%clk 0:01:07]} 27. Qb8+ {[%clk 0:00:59.1]} 27... Kh7 {[%clk 0:01:06.5]}
28. Qf4 {[%clk 0:00:59.2]} 28... Qc2 {[%clk 0:01:02.7]} 29. Be4+ {[%clk
0:00:57.8]} 1-0

[Event "*** Titled Tuesday Blitz"]
[Site "Chess.com"]
[Date "2020.04.14"]
[Round "5"]
[White "Imre91"]
[Black "Frolyanov_D"]
[Result "0-1"]
[WhiteElo "2593"]
[BlackElo "2776"]
[TimeControl "180+1"]
[EndTime "10:49:07 PDT"]
[Termination "Frolyanov_D won by resignation"]

1. d4 {[%clk 0:02:58.8]} 1... Nf6 {[%clk 0:02:59]} 2. Bg5 {[%clk 0:02:55]} 2...
e6 {[%clk 0:02:56.5]} 3. e4 {[%clk 0:02:53.7]} 3... h6 {[%clk 0:02:56.1]} 4.
Bxf6 {[%clk 0:02:53.7]} 4... Qxf6 {[%clk 0:02:56.7]} 5. Nc3 {[%clk 0:02:54.6]}
5... d6 {[%clk 0:02:55.3]} 6. Qd2 {[%clk 0:02:53.7]} 6... g6 {[%clk 0:02:54.8]}
7. O-O-O {[%clk 0:02:52.9]} 7... Bg7 {[%clk 0:02:55.1]} 8. f4 {[%clk 0:02:52.7]}
8... a6 {[%clk 0:02:49.7]} 9. Nf3 {[%clk 0:02:51.5]} 9... b5 {[%clk 0:02:47.1]}
10. e5 {[%clk 0:02:51.1]} 10... Qe7 {[%clk 0:02:46.8]} 11. h4 {[%clk 0:02:50.9]}
11... h5 {[%clk 0:02:38.8]} 12. Bd3 {[%clk 0:02:45]} 12... Bb7 {[%clk
0:02:35.6]} 13. Be4 {[%clk 0:02:38.1]} 13... d5 {[%clk 0:02:34.7]} 14. Bd3
{[%clk 0:02:37.8]} 14... Nd7 {[%clk 0:02:33]} 15. Ne2 {[%clk 0:02:33.4]} 15...
c5 {[%clk 0:02:31.6]} 16. dxc5 {[%clk 0:02:32.4]} 16... Nxc5 {[%clk 0:02:30.2]}
17. Ned4 {[%clk 0:02:32.7]} 17... Ne4 {[%clk 0:02:26.7]} 18. Qe3 {[%clk
0:02:31.8]} 18... Rc8 {[%clk 0:02:15.9]} 19. Ng5 {[%clk 0:02:28.8]} 19... Nc5
{[%clk 0:01:50.4]} 20. Nb3 {[%clk 0:02:20.2]} 20... Nxb3+ {[%clk 0:01:44.6]} 21.
axb3 {[%clk 0:02:18.6]} 21... Qc5 {[%clk 0:01:44.6]} 22. Qe2 {[%clk 0:02:07.4]}
22... Bh6 {[%clk 0:01:33.9]} 23. g4 {[%clk 0:02:04.3]} 23... hxg4 {[%clk
0:01:30.9]} 24. Qxg4 {[%clk 0:02:03.2]} 24... Bxg5 {[%clk 0:01:30.6]} 25. Qxg5
{[%clk 0:01:56.5]} 25... Qe7 {[%clk 0:01:28.3]} 26. b4 {[%clk 0:01:44.1]} 26...
d4 {[%clk 0:01:23.5]} 27. Qxe7+ {[%clk 0:01:23.5]} 27... Kxe7 {[%clk 0:01:22.6]}
28. Rh2 {[%clk 0:01:23.5]} 28... Rh6 {[%clk 0:01:12.9]} 29. Be2 {[%clk 0:01:23]}
29... Be4 {[%clk 0:01:12.1]} 30. Bg4 {[%clk 0:01:12.9]} 30... Rxh4 {[%clk
0:01:06.1]} 31. Rxh4 {[%clk 0:01:06.3]} 31... Rxc2+ {[%clk 0:01:05.9]} 32. Kb1
{[%clk 0:01:06.1]} 32... Rh2+ {[%clk 0:01:05.8]} 0-1

[Event "*** Titled Tuesday Blitz"]
[Site "Chess.com"]
[Date "2020.04.14"]
[Round "5"]
[White "AlleyOoper"]
[Black "JakubPulpan"]
[Result "1-0"]
[WhiteElo "2604"]
[BlackElo "2750"]
[TimeControl "180+1"]
[EndTime "10:49:07 PDT"]
[Termination "AlleyOoper won by resignation"]

1. d4 {[%clk 0:03:00.9]} 1... Nf6 {[%clk 0:02:54.7]} 2. Bf4 {[%clk 0:03:00.1]}
2... d5 {[%clk 0:02:52.6]} 3. e3 {[%clk 0:02:59.9]} 3... c5 {[%clk 0:02:52.9]}
4. Nf3 {[%clk 0:02:59.1]} 4... e6 {[%clk 0:02:51.9]} 5. Nbd2 {[%clk 0:02:58.9]}
5... Nc6 {[%clk 0:02:49.6]} 6. c3 {[%clk 0:02:59.1]} 6... Be7 {[%clk 0:02:48.9]}
7. h3 {[%clk 0:02:57.6]} 7... Bd6 {[%clk 0:02:48.2]} 8. Bxd6 {[%clk 0:02:46.8]}
8... Qxd6 {[%clk 0:02:49.1]} 9. Bd3 {[%clk 0:02:47.3]} 9... O-O {[%clk
0:02:47.2]} 10. O-O {[%clk 0:02:46.9]} 10... b6 {[%clk 0:02:40.5]} 11. dxc5
{[%clk 0:02:41.9]} 11... Qxc5 {[%clk 0:02:40.1]} 12. e4 {[%clk 0:02:42.1]} 12...
Bb7 {[%clk 0:02:40.2]} 13. e5 {[%clk 0:02:31.9]} 13... Nd7 {[%clk 0:02:36]} 14.
Qe2 {[%clk 0:02:07.7]} 14... Rfe8 {[%clk 0:02:27.1]} 15. Nb3 {[%clk 0:02:06.3]}
15... Qe7 {[%clk 0:02:27.1]} 16. Nbd4 {[%clk 0:02:06.9]} 16... Nc5 {[%clk
0:02:23.5]} 17. Bc2 {[%clk 0:02:03.3]} 17... Nxd4 {[%clk 0:02:20.8]} 18. Nxd4
{[%clk 0:01:38.9]} 18... Ba6 {[%clk 0:02:19.7]} 19. Nb5 {[%clk 0:01:38.2]} 19...
Rad8 {[%clk 0:01:54.1]} 20. a4 {[%clk 0:01:33.7]} 20... d4 {[%clk 0:01:52.3]}
21. cxd4 {[%clk 0:01:33.2]} 21... Rxd4 {[%clk 0:01:52.4]} 22. Bxh7+ {[%clk
0:01:30.8]} 22... Kxh7 {[%clk 0:01:49.4]} 23. Qh5+ {[%clk 0:01:30.8]} 23... Kg8
{[%clk 0:01:50.3]} 24. Nxd4 {[%clk 0:01:31.2]} 24... Bxf1 {[%clk 0:01:51.2]} 25.
Rxf1 {[%clk 0:01:20.5]} 25... Nxa4 {[%clk 0:01:49.6]} 26. Nf3 {[%clk 0:01:20.7]}
26... g6 {[%clk 0:01:49.4]} 27. Qh6 {[%clk 0:01:18.6]} 27... Qf8 {[%clk
0:01:49.6]} 28. Qh4 {[%clk 0:01:18.8]} 28... Nc5 {[%clk 0:01:09.8]} 29. b4
{[%clk 0:01:13.8]} 29... Nd7 {[%clk 0:01:08.9]} 30. Rd1 {[%clk 0:01:13.8]} 30...
Nb8 {[%clk 0:01:07.3]} 31. Ng5 {[%clk 0:01:11.5]} 31... Qg7 {[%clk 0:01:05.2]}
32. Ne4 {[%clk 0:01:11.5]} 1-0

[Event "*** Titled Tuesday Blitz"]
[Site "Chess.com"]
[Date "2020.04.14"]
[Round "5"]
[White "Anna_ChessMate"]
[Black "SantoBlue"]
[Result "0-1"]
[WhiteElo "2611"]
[BlackElo "2801"]
[TimeControl "180+1"]
[EndTime "10:49:10 PDT"]
[Termination "SantoBlue won by resignation"]

1. d4 {[%clk 0:03:00.7]} 1... Nf6 {[%clk 0:03:00.1]} 2. c4 {[%clk 0:03:00.1]}
2... g6 {[%clk 0:03:00.4]} 3. g3 {[%clk 0:02:57.6]} 3... Bg7 {[%clk 0:03:00.5]}
4. Bg2 {[%clk 0:02:53.4]} 4... O-O {[%clk 0:02:59]} 5. Nc3 {[%clk 0:02:53.4]}
5... d6 {[%clk 0:02:58.7]} 6. Nf3 {[%clk 0:02:53.9]} 6... Nc6 {[%clk 0:02:57]}
7. O-O {[%clk 0:02:51.9]} 7... a6 {[%clk 0:02:57.1]} 8. Qd3 {[%clk 0:02:50.1]}
8... Rb8 {[%clk 0:02:50.2]} 9. e4 {[%clk 0:02:47]} 9... e5 {[%clk 0:02:49.3]}
10. d5 {[%clk 0:02:46.4]} 10... Ne7 {[%clk 0:02:48.8]} 11. h3 {[%clk 0:02:43.9]}
11... Nd7 {[%clk 0:02:48.6]} 12. b4 {[%clk 0:02:42.8]} 12... h6 {[%clk
0:02:46.2]} 13. Be3 {[%clk 0:02:36.3]} 13... f5 {[%clk 0:02:45.8]} 14. exf5
{[%clk 0:02:35.9]} 14... gxf5 {[%clk 0:02:44.4]} 15. Nd2 {[%clk 0:02:27.9]}
15... f4 {[%clk 0:02:30]} 16. gxf4 {[%clk 0:02:28.7]} 16... exf4 {[%clk
0:02:30.9]} 17. Bd4 {[%clk 0:02:28.7]} 17... Ne5 {[%clk 0:02:31.5]} 18. Bxe5
{[%clk 0:02:20.5]} 18... Bxe5 {[%clk 0:02:28.7]} 19. Be4 {[%clk 0:02:15]} 19...
Nf5 {[%clk 0:02:25.2]} 20. Nf3 {[%clk 0:02:04.9]} 20... Bg7 {[%clk 0:02:23.2]}
21. Rfe1 {[%clk 0:01:59.1]} 21... Qf6 {[%clk 0:02:21.3]} 22. Rac1 {[%clk
0:01:57]} 22... Bd7 {[%clk 0:02:21.6]} 23. Ne2 {[%clk 0:01:53.8]} 23... Nh4
{[%clk 0:02:15.3]} 24. Kh2 {[%clk 0:01:49]} 24... Rbe8 {[%clk 0:02:10.5]} 25.
Rg1 {[%clk 0:01:40.8]} 25... Rxe4 {[%clk 0:01:47.1]} 26. Qxe4 {[%clk 0:01:37.8]}
26... Re8 {[%clk 0:01:47.4]} 27. Qd3 {[%clk 0:01:28.6]} 27... Bf5 {[%clk
0:01:37.8]} 28. Rxg7+ {[%clk 0:00:32.2]} 28... Kxg7 {[%clk 0:01:30.7]} 0-1

[Event "*** Titled Tuesday Blitz"]
[Site "Chess.com"]
[Date "2020.04.14"]
[Round "5"]
[White "kinga2008"]
[Black "Usurpov"]
[Result "1-0"]
[WhiteElo "2224"]
[BlackElo "2418"]
[TimeControl "180+1"]
[EndTime "10:49:11 PDT"]
[Termination "kinga2008 won by resignation"]

1. e4 {[%clk 0:02:53.6]} 1... c5 {[%clk 0:02:59.1]} 2. Nf3 {[%clk 0:02:51.5]}
2... e6 {[%clk 0:02:59]} 3. c3 {[%clk 0:02:46.4]} 3... d5 {[%clk 0:02:58.1]} 4.
exd5 {[%clk 0:02:45.5]} 4... exd5 {[%clk 0:02:59]} 5. d4 {[%clk 0:02:44.9]} 5...
a6 {[%clk 0:02:59.3]} 6. Be3 {[%clk 0:02:43.1]} 6... c4 {[%clk 0:02:58.7]} 7.
Be2 {[%clk 0:02:26.2]} 7... Bd6 {[%clk 0:02:57.5]} 8. b3 {[%clk 0:02:26.7]} 8...
cxb3 {[%clk 0:02:56.9]} 9. axb3 {[%clk 0:02:27.6]} 9... Ne7 {[%clk 0:02:57.2]}
10. O-O {[%clk 0:02:27.7]} 10... O-O {[%clk 0:02:57.3]} 11. c4 {[%clk
0:02:28.3]} 11... Nbc6 {[%clk 0:02:56.8]} 12. c5 {[%clk 0:02:28.3]} 12... Bc7
{[%clk 0:02:55.5]} 13. Bd3 {[%clk 0:02:27.1]} 13... Re8 {[%clk 0:02:51.2]} 14.
Ng5 {[%clk 0:02:26.3]} 14... h6 {[%clk 0:02:38.2]} 15. Qh5 {[%clk 0:02:23.2]}
15... hxg5 {[%clk 0:02:30.7]} 16. Qh7+ {[%clk 0:02:17.1]} 16... Kf8 {[%clk
0:02:30.9]} 17. Bxg5 {[%clk 0:02:15.3]} 17... f6 {[%clk 0:02:29.1]} 18. Bxf6
{[%clk 0:01:42.9]} 18... gxf6 {[%clk 0:02:13.1]} 19. Qh6+ {[%clk 0:01:39.5]}
19... Kf7 {[%clk 0:02:10.5]} 20. Qh5+ {[%clk 0:01:17.9]} 20... Ke6 {[%clk
0:02:09.9]} 21. Re1+ {[%clk 0:01:16.7]} 21... Ne5 {[%clk 0:02:06.3]} 22. dxe5
{[%clk 0:01:14.9]} 22... Rh8 {[%clk 0:01:42.5]} 23. exf6+ {[%clk 0:01:11.8]}
23... Kd7 {[%clk 0:01:38.6]} 24. Rxe7+ {[%clk 0:00:45]} 24... Kc6 {[%clk
0:01:31.1]} 25. Qe2 {[%clk 0:00:33.8]} 25... Bxh2+ {[%clk 0:01:28.4]} 26. Kf1
{[%clk 0:00:33.5]} 26... Be5 {[%clk 0:01:19.1]} 27. Qxe5 {[%clk 0:00:29.1]} 1-0

[Event "*** Titled Tuesday Blitz"]
[Site "Chess.com"]
[Date "2020.04.14"]
[Round "5"]
[White "FannyDuarteNapoles"]
[Black "algatar2020"]
[Result "1-0"]
[WhiteElo "2285"]
[BlackElo "1876"]
[TimeControl "180+1"]
[EndTime "10:49:12 PDT"]
[Termination "FannyDuarteNapoles won by resignation"]

1. c4 {[%clk 0:02:59.7]} 1... c6 {[%clk 0:02:58.9]} 2. Nc3 {[%clk 0:02:59]} 2...
d5 {[%clk 0:02:59.1]} 3. cxd5 {[%clk 0:02:59.9]} 3... cxd5 {[%clk 0:02:57.8]} 4.
d4 {[%clk 0:03:00.8]} 4... Nc6 {[%clk 0:02:57.6]} 5. Bf4 {[%clk 0:03:00.7]} 5...
Nf6 {[%clk 0:02:56.2]} 6. e3 {[%clk 0:03:00.6]} 6... Qb6 {[%clk 0:02:51]} 7. Rb1
{[%clk 0:02:56.3]} 7... Bf5 {[%clk 0:02:50.5]} 8. Bd3 {[%clk 0:02:55.7]} 8...
Bxd3 {[%clk 0:02:50.5]} 9. Qxd3 {[%clk 0:02:56.6]} 9... e6 {[%clk 0:02:50.2]}
10. Nf3 {[%clk 0:02:56.5]} 10... Be7 {[%clk 0:02:48.2]} 11. O-O {[%clk
0:02:55.3]} 11... O-O {[%clk 0:02:48.2]} 12. a3 {[%clk 0:02:55.1]} 12... Rac8
{[%clk 0:02:45.7]} 13. b4 {[%clk 0:02:54.7]} 13... Qd8 {[%clk 0:02:41.6]} 14.
Na4 {[%clk 0:02:54.5]} 14... Bd6 {[%clk 0:02:31.9]} 15. Bg3 {[%clk 0:02:42.4]}
15... Bxg3 {[%clk 0:02:26.7]} 16. hxg3 {[%clk 0:02:43.3]} 16... b6 {[%clk
0:02:15.5]} 17. Rfc1 {[%clk 0:02:41.2]} 17... Ne4 {[%clk 0:02:15.2]} 18. Qa6
{[%clk 0:02:33]} 18... h6 {[%clk 0:01:50.1]} 19. b5 {[%clk 0:02:25.5]} 19... Na5
{[%clk 0:01:38]} 20. Qxa7 {[%clk 0:02:22.3]} 20... Rxc1+ {[%clk 0:01:21.1]} 21.
Rxc1 {[%clk 0:02:21.6]} 21... Qe8 {[%clk 0:01:21.7]} 22. Qxb6 {[%clk 0:02:17.3]}
22... Nc4 {[%clk 0:01:16.3]} 23. Qc6 {[%clk 0:02:12.3]} 23... Qe7 {[%clk
0:01:12]} 24. Nc5 {[%clk 0:02:10.7]} 24... Nxa3 {[%clk 0:00:50.4]} 25. Nxe4
{[%clk 0:02:06.3]} 25... dxe4 {[%clk 0:00:50.1]} 26. Ne5 {[%clk 0:02:06.4]}
26... Rb8 {[%clk 0:00:43.4]} 27. b6 {[%clk 0:02:04.2]} 27... Qb4 {[%clk
0:00:40.7]} 28. Nd7 {[%clk 0:02:02.6]} 28... Rd8 {[%clk 0:00:22.3]} 29. b7
{[%clk 0:02:01.3]} 29... Qb2 {[%clk 0:00:13]} 30. Qc8 {[%clk 0:01:58.8]} 1-0

[Event "*** Titled Tuesday Blitz"]
[Site "Chess.com"]
[Date "2020.04.14"]
[Round "5"]
[White "Chess2019Player"]
[Black "Everyfishknows"]
[Result "0-1"]
[WhiteElo "2189"]
[BlackElo "2358"]
[TimeControl "180+1"]
[EndTime "10:49:13 PDT"]
[Termination "Everyfishknows won by resignation"]

1. e4 {[%clk 0:03:00.9]} 1... e5 {[%clk 0:02:58.8]} 2. Nf3 {[%clk 0:02:55.5]}
2... Nc6 {[%clk 0:02:58.3]} 3. Bb5 {[%clk 0:02:55.8]} 3... a6 {[%clk 0:02:55.8]}
4. Ba4 {[%clk 0:02:55.8]} 4... Nf6 {[%clk 0:02:55.7]} 5. O-O {[%clk 0:02:55.4]}
5... Be7 {[%clk 0:02:55.8]} 6. c3 {[%clk 0:02:50.2]} 6... Nxe4 {[%clk
0:02:48.9]} 7. Re1 {[%clk 0:02:49.8]} 7... Nc5 {[%clk 0:02:37.8]} 8. Bxc6 {[%clk
0:02:49.1]} 8... dxc6 {[%clk 0:02:38.7]} 9. Nxe5 {[%clk 0:02:48.7]} 9... O-O
{[%clk 0:02:38.4]} 10. d4 {[%clk 0:02:48.6]} 10... Nd7 {[%clk 0:02:29.8]} 11.
Nxd7 {[%clk 0:02:40.1]} 11... Bxd7 {[%clk 0:02:29.3]} 12. Nd2 {[%clk 0:02:41]}
12... c5 {[%clk 0:02:23.9]} 13. dxc5 {[%clk 0:02:35.8]} 13... Bxc5 {[%clk
0:02:23.9]} 14. Ne4 {[%clk 0:02:36.4]} 14... Be7 {[%clk 0:02:21.7]} 15. Bf4
{[%clk 0:02:35.9]} 15... Bc6 {[%clk 0:02:05.1]} 16. Qc2 {[%clk 0:02:10.8]} 16...
Qd7 {[%clk 0:01:33.6]} 17. Rad1 {[%clk 0:01:59.8]} 17... Qf5 {[%clk 0:01:25.9]}
18. Bxc7 {[%clk 0:01:54.2]} 18... Rfe8 {[%clk 0:01:21.2]} 19. f3 {[%clk
0:01:14.6]} 19... Bc5+ {[%clk 0:00:58.9]} 20. Kh1 {[%clk 0:01:09.4]} 20... Ba7
{[%clk 0:00:58.8]} 21. Bg3 {[%clk 0:00:58.3]} 21... Rad8 {[%clk 0:00:54.4]} 22.
Rxd8 {[%clk 0:00:56.8]} 22... Rxd8 {[%clk 0:00:55.3]} 23. Qe2 {[%clk 0:00:54.8]}
23... Re8 {[%clk 0:00:43.4]} 24. Nf6+ {[%clk 0:00:53.1]} 24... gxf6 {[%clk
0:00:43.2]} 25. Qxe8+ {[%clk 0:00:52]} 25... Bxe8 {[%clk 0:00:43.3]} 26. Rxe8+
{[%clk 0:00:52.9]} 26... Kg7 {[%clk 0:00:43.9]} 0-1